bitfinex/quotes_BTCUSD_20240803
["timestamp","ask_amount","ask_price","bid_price","bid_amount"]
[1722691379954,0.00909,62027.0,62026.0,1.90374708]
[1722691380126,0.00909,62027.0,62026.0,1.66931921]
[1722691380471,0.00909,62027.0,62026.0,1.90574755]
[1722691380686,0.00909,62027.0,62026.0,1.91562499]
[1722691380897,0.00909,62027.0,62026.0,2.06135323]
[1722691381329,0.00909,62027.0,62026.0,1.99441448]
[1722691381478,0.00909,62027.0,62026.0,2.05939263]
[1722691382499,0.00909,62027.0,62026.0,2.10761422]
[1722691383431,0.00909,62027.0,62026.0,2.08139263]
[1722691383629,0.00909,62027.0,62026.0,2.31756269]
[1722691383827,0.00909,62027.0,62026.0,2.4870643]
[1722691384026,0.00909,62027.0,62026.0,2.5679643]
[1722691384228,0.00909,62027.0,62026.0,2.66440749]
[1722691384617,0.00909,62027.0,62026.0,2.68851829]
[1722691385032,0.00083,62038.0,62037.0,1.42075]
[1722691385251,0.00083,62038.0,62037.0,2.0546805]
[1722691385471,0.00909,62039.0,62038.0,1.361828]
[1722691385685,0.00909,62039.0,62038.0,2.05036489]
[1722691385899,0.00909,62039.0,62038.0,1.8316595]
[1722691386106,0.00909,62039.0,62038.0,1.32153396]
[1722691386534,0.00909,62039.0,62038.0,1.32160703]
[1722691386780,0.00909,62039.0,62038.0,0.92204828]
[1722691386997,0.01009,62039.0,62038.0,1.16382743]
[1722691387260,0.01009,62039.0,62038.0,1.09685713]
[1722691388289,0.01009,62039.0,62038.0,0.61328313]
[1722691388898,0.01009,62039.0,62038.0,0.85507013]
[1722691389866,0.01009,62039.0,62038.0,1.09685713]
[1722691390045,0.01009,62039.0,62038.0,1.09695802]
[1722691390446,0.01009,62039.0,62038.0,0.85517025]
[1722691391083,0.15359,62039.0,62038.0,0.61338325]
[1722691391378,0.15359,62039.0,62038.0,0.85517025]
[1722691391583,0.15359,62039.0,62038.0,0.61338325]
[1722691392135,0.15359,62039.0,62038.0,0.15070325]
[1722691392350,0.15359,62039.0,62038.0,0.27159625]
[1722691392545,0.15359,62039.0,62038.0,0.51338325]
[1722691393558,0.15359,62039.0,62038.0,0.51324946]
[1722691393699,0.15359,62039.0,62038.0,0.27146246]
[1722691394551,0.15359,62039.0,62038.0,0.51324946]
[1722691398747,0.09279,62039.0,62038.0,0.75503646]
[1722691398947,0.01009,62039.0,62038.0,0.99682346]
[1722691400627,0.01009,62039.0,62038.0,0.39966879]
[1722691400828,0.01009,62039.0,62038.0,0.75537655]
[1722691401082,0.273281,62039.0,62038.0,0.15091487]
[1722691401326,0.273281,62039.0,62038.0,0.03698879]
[1722691401490,0.394173,62039.0,62032.0,0.00996779]
[1722691401692,0.394173,62039.0,62028.0,0.00157439]
[1722691401693,0.0605,62032.0,62028.0,0.00157439]
[1722691401841,0.0605,62032.0,62029.0,0.35600205]
[1722691402072,0.0605,62032.0,62030.0,0.11418118]
[1722691402288,0.0605,62032.0,62027.0,0.241828]
[1722691402513,0.0605,62032.0,62031.0,0.120907]
[1722691402917,0.0605,62032.0,62031.0,0.362721]
[1722691403759,0.0605,62032.0,62031.0,0.125907]
[1722691404387,0.0605,62032.0,62031.0,0.367721]
[1722691404732,0.0605,62032.0,62031.0,0.373721]
[1722691405205,0.0605,62032.0,62031.0,0.367721]
[1722691405413,0.0605,62032.0,62031.0,0.125907]
[1722691405748,0.0605,62032.0,62031.0,0.007]
[1722691405947,0.505015,62032.0,62031.0,0.002]
[1722691406154,0.120914,62028.0,62023.0,0.12249639]
[1722691406277,0.120914,62028.0,62016.0,0.04830217]
[1722691406278,0.1423,62025.0,62016.0,0.241872]
[1722691406481,0.241827,62028.0,62020.0,0.241856]
[1722691406482,0.0818,62023.0,62020.0,0.241856]
[1722691406677,0.0818,62023.0,62021.0,0.03704048]
[1722691406906,0.0818,62023.0,62022.0,0.120924]
[1722691407080,0.0818,62023.0,62022.0,0.15796147]
[1722691407481,0.0818,62023.0,62022.0,0.03703747]
[1722691408108,0.0818,62023.0,62022.0,0.03803747]
[1722691408318,0.0818,62023.0,62022.0,0.15896147]
[1722691408529,0.0818,62023.0,62022.0,0.40081047]
[1722691409337,0.0818,62023.0,62022.0,0.40181047]
[1722691409544,0.0818,62023.0,62022.0,0.40081047]
[1722691409908,0.0818,62023.0,62022.0,0.40181047]
[1722691410646,0.0818,62023.0,62022.0,0.15996147]
[1722691411685,0.202722,62023.0,62022.0,0.03903747]
[1722691411890,0.505067,62023.0,62022.0,0.002]
[1722691412171,0.1423,62023.0,62022.0,0.002]
[1722691412582,0.1423,62023.0,62022.0,0.20167594]
[1722691412770,0.1423,62023.0,62022.0,0.23878933]
[1722691412922,0.1423,62031.0,62030.0,0.120909]
[1722691413131,0.0818,62031.0,62030.0,0.502427]
[1722691413452,0.0605,62034.0,62033.0,0.362709]
[1722691413615,0.651002,62042.0,62030.0,0.17679071]
[1722691413616,0.15139,62039.0,62038.0,0.120893]
[1722691413812,0.15139,62039.0,62038.0,0.36268]
[1722691414010,0.15139,62039.0,62038.0,0.1579597]
[1722691414237,0.15139,62039.0,62038.0,0.0370667]
[1722691414436,0.67152324,62039.0,62030.0,0.381516]
[1722691414698,0.15745924,62038.0,62030.0,0.381516]
[1722691414897,0.15745924,62038.0,62034.0,0.120901]
[1722691415518,0.15745924,62038.0,62035.0,0.03705285]
[1722691415722,0.15745924,62038.0,62033.0,0.120902]
[1722691415935,0.15745924,62038.0,62030.0,0.381516]
[1722691415936,0.15745924,62038.0,62036.0,0.03704985]
[1722691416138,0.15139,62039.0,62036.0,0.120896]
[1722691416338,0.15539,62039.0,62038.0,0.001]
[1722691416559,0.15139,62039.0,62037.0,0.03704685]
[1722691416761,0.15139,62039.0,62038.0,0.03704385]
[1722691417112,0.15139,62039.0,62036.0,0.120896]
[1722691417414,0.15439,62039.0,62038.0,0.03704385]
[1722691417659,0.15439,62039.0,62036.0,0.121896]
[1722691417660,0.15439,62039.0,62037.0,0.03704685]
[1722691417831,0.15439,62039.0,62038.0,0.03704385]
[1722691418240,0.15439,62039.0,62036.0,0.120896]
[1722691418448,0.15439,62039.0,62038.0,0.03704385]
[1722691418640,0.15439,62039.0,62037.0,0.03704685]
[1722691419100,0.15439,62039.0,62038.0,0.03704385]
[1722691419300,0.15839,62039.0,62038.0,0.03804385]
[1722691419476,0.279281,62039.0,62038.0,0.001]
[1722691419629,0.272281,62039.0,62038.0,0.03704385]
[1722691419834,0.276281,62039.0,62037.0,0.001]
[1722691420053,0.15139,62039.0,62038.0,0.03704385]
[1722691420505,0.05539,62039.0,62038.0,0.03804385]
[1722691420680,0.176281,62039.0,62032.0,0.241809]
[1722691420884,0.172281,62039.0,62038.0,0.03704385]
[1722691421081,0.176281,62039.0,62038.0,0.03704385]
[1722691421282,0.176281,62039.0,62037.0,0.001]
[1722691421420,0.176281,62039.0,62038.0,0.03704385]
[1722691423015,0.418064,62039.0,62038.0,0.03704385]
[1722691423226,0.414064,62039.0,62038.0,0.03704385]
[1722691423420,0.120897,62036.0,62031.0,0.120906]
[1722691423645,0.0827,62035.0,62031.0,0.120906]
[1722691423780,0.0827,62035.0,62032.0,0.03702656]
[1722691424521,0.2036,62035.0,62032.0,0.03702656]
[1722691424750,0.0827,62035.0,62031.0,0.120907]
[1722691424928,0.0857,62035.0,62031.0,0.120907]
[1722691425133,0.0857,62035.0,62032.0,0.03702976]
[1722691426161,0.0827,62035.0,62032.0,0.15793476]
[1722691426360,0.0827,62035.0,62032.0,0.120905]
[1722691426661,0.0857,62035.0,62033.0,0.03702676]
[1722691427251,0.0887,62035.0,62033.0,0.03702676]
[1722691427557,0.0887,62035.0,62030.0,0.241818]
[1722691427558,0.0827,62035.0,62034.0,0.03702376]
[1722691427761,0.0857,62035.0,62031.0,0.120906]
[1722691427963,0.0857,62035.0,62034.0,0.03702376]
[1722691428118,0.0857,62035.0,62031.0,0.120906]
[1722691428324,0.0857,62035.0,62034.0,0.03702376]
[1722691428536,0.0857,62035.0,62031.0,0.120906]
[1722691428735,0.0857,62035.0,62034.0,0.03702376]
[1722691428954,0.0857,62035.0,62031.0,0.120906]
[1722691429155,0.0857,62035.0,62034.0,0.03702376]
[1722691429483,0.0827,62035.0,62032.0,0.120905]
[1722691429829,0.0857,62035.0,62034.0,0.03702376]
[1722691429954,0.0857,62035.0,62033.0,0.03702676]
[1722691429955,0.08250599,62035.0,62033.0,0.03702676]
[1722691430154,0.08250599,62035.0,62032.0,0.120905]
[1722691430384,0.08550599,62035.0,62034.0,0.03702376]
[1722691430542,0.08550599,62035.0,62033.0,0.03702676]
[1722691430748,0.006,62035.0,62034.0,0.120901]
[1722691430990,0.006,62035.0,62034.0,0.15792476]
[1722691431199,0.006,62035.0,62034.0,0.39972676]
[1722691431353,0.006,62035.0,62034.0,0.64152876]
[1722691431946,0.006,62035.0,62034.0,0.72422876]
[1722691432403,0.00083,62041.0,62039.0,0.12089]
[1722691432805,0.00083,62041.0,62040.0,0.15789475]
[1722691433869,0.00483,62041.0,62040.0,0.03800575]
[1722691435123,0.00483,62041.0,62040.0,0.15889475]
[1722691435499,0.00083,62041.0,62040.0,0.15789475]
[1722691435698,0.00083,62041.0,62040.0,0.03800575]
[1722691436061,0.00483,62041.0,62040.0,0.03800575]
[1722691437416,0.00483,62041.0,62040.0,0.15889475]
[1722691438354,0.00483,62041.0,62040.0,0.40067375]
[1722691438547,0.00483,62041.0,62040.0,0.15889475]
[1722691441341,0.00483,62041.0,62040.0,0.03800575]
[1722691442714,0.00483,62041.0,62040.0,0.15889475]
[1722691443345,0.00483,62041.0,62040.0,0.40067375]
[1722691443768,0.00483,62041.0,62040.0,0.15889475]
[1722691447214,0.00483,62041.0,62040.0,0.40067375]
[1722691449128,0.00483,62041.0,62040.0,0.46537375]
[1722691449321,0.00483,62041.0,62040.0,0.54507375]
[1722691449700,0.00483,62041.0,62040.0,0.54407375]
[1722691449903,0.00083,62041.0,62040.0,0.54407375]
[1722691450101,0.00483,62041.0,62040.0,0.48037375]
[1722691450308,0.00483,62041.0,62040.0,0.15889475]
[1722691453210,0.00483,62041.0,62040.0,0.40067375]
[1722691453619,0.00483,62041.0,62040.0,0.88423175]
[1722691453789,0.00483,62041.0,62040.0,1.07759947]
[1722691455305,0.00483,62041.0,62040.0,1.13339947]
[1722691456093,0.00083,62041.0,62040.0,0.89062047]
[1722691456312,0.00083,62041.0,62040.0,0.51334147]
[1722691456564,0.00483,62041.0,62040.0,0.03700575]
[1722691456743,0.00483,62041.0,62039.0,0.120891]
[1722691456899,0.00483,62041.0,62040.0,0.03700146]
[1722691457281,0.00483,62041.0,62040.0,0.15789046]
[1722691458286,0.00483,62041.0,62040.0,0.39966946]
[1722691459359,0.00483,62041.0,62040.0,0.51278089]
[1722691459564,0.00483,62041.0,62040.0,0.75455989]
[1722691459978,0.00483,62041.0,62040.0,0.75464764]
[1722691460185,0.00483,62041.0,62040.0,0.83464764]
[1722691460394,0.00483,62041.0,62040.0,0.896446]
[1722691461431,0.00483,62041.0,62040.0,1.138225]
[1722691461969,0.00483,62041.0,62040.0,0.896446]
[1722691463608,0.00483,62041.0,62040.0,0.78324846]
[1722691463786,0.00483,62041.0,62040.0,0.89572831]
[1722691463988,0.00483,62041.0,62040.0,0.78324846]
[1722691464213,0.00483,62041.0,62040.0,0.8957122]
[1722691467326,0.00483,62041.0,62040.0,0.89580934]
[1722691467528,0.00483,62041.0,62040.0,0.75400934]
[1722691470525,0.00483,62041.0,62040.0,0.51223034]
[1722691470732,0.00483,62041.0,62040.0,0.39966946]
[1722691470939,0.00483,62041.0,62040.0,0.51276117]
[1722691471331,0.00483,62041.0,62040.0,0.75454017]
[1722691474067,0.00483,62041.0,62040.0,0.81634017]
[1722691474272,0.00483,62041.0,62040.0,0.81613548]
[1722691474675,0.00483,62041.0,62040.0,0.81613636]
[1722691477881,0.00483,62041.0,62040.0,0.8161122]
[1722691479229,0.00483,62041.0,62040.0,0.8719122]
[1722691480025,0.00483,62041.0,62040.0,0.9510122]
[1722691483885,0.00483,62041.0,62040.0,1.1927912]
[1722691484112,0.00483,62041.0,62040.0,0.9510122]
[1722691484685,0.00483,62041.0,62040.0,0.83814846]
[1722691484886,0.00483,62041.0,62040.0,0.95063886]
[1722691485241,0.00483,62041.0,62040.0,0.88867184]
[1722691486338,0.00483,62041.0,62040.0,1.13078911]
[1722691486989,0.00483,62041.0,62040.0,0.88901011]
[1722691488276,0.00483,62041.0,62040.0,1.13078911]
[1722691488483,0.00483,62041.0,62040.0,0.95071011]
[1722691488683,0.00483,62041.0,62040.0,1.19248911]
[1722691491747,0.00483,62041.0,62040.0,1.07982746]
[1722691491949,0.00483,62041.0,62040.0,1.19249769]
[1722691492640,0.00483,62041.0,62040.0,1.24089348]
[1722691493050,0.00483,62041.0,62040.0,1.19249769]
[1722691493559,0.00483,62041.0,62040.0,1.24089348]
[1722691495137,0.00483,62041.0,62040.0,1.19249769]
[1722691495768,0.00483,62041.0,62040.0,1.24108525]
[1722691496764,0.00483,62041.0,62040.0,1.19272033]
[1722691497563,0.00483,62041.0,62040.0,1.24110155]
[1722691498513,0.00483,62041.0,62040.0,1.25068801]
[1722691498740,0.00483,62041.0,62040.0,1.37957414]
[1722691498981,0.00483,62041.0,62040.0,1.25060134]
[1722691500048,0.00483,62041.0,62040.0,1.49238034]
[1722691500858,0.00483,62041.0,62040.0,1.44399912]
[1722691501033,0.00483,62041.0,62040.0,1.49237118]
[1722691501235,0.00483,62041.0,62040.0,1.44399203]
[1722691501553,0.00483,62041.0,62040.0,1.64982333]
[1722691501715,0.00483,62041.0,62040.0,1.85097996]
[1722691501922,0.00483,62041.0,62040.0,1.76236688]
[1722691502135,0.00483,62041.0,62040.0,1.89936359]
[1722691502341,0.00483,62041.0,62040.0,2.43533227]
[1722691502535,0.00483,62041.0,62040.0,2.45533227]
[1722691503091,0.00483,62041.0,62040.0,2.31056193]
[1722691503630,0.00123,62042.0,62041.0,1.099987]
[1722691503748,0.00123,62042.0,62041.0,2.03562895]
[1722691503949,0.00093894,62042.0,62041.0,2.08259232]
[1722691504153,0.00093894,62042.0,62041.0,2.30436732]
[1722691504359,0.00093894,62042.0,62041.0,2.06259232]
[1722691504649,0.00093894,62042.0,62041.0,1.78234779]
[1722691504882,0.00093894,62042.0,62041.0,2.15700973]
[1722691505087,0.00093894,62042.0,62041.0,2.32440768]
[1722691505297,0.00093894,62042.0,62041.0,2.29444996]
[1722691505486,0.00093894,62042.0,62041.0,2.09309514]
[1722691505688,0.00093894,62042.0,62041.0,2.36140664]
[1722691506079,0.00093894,62042.0,62041.0,2.26049572]
[1722691506626,0.00093894,62042.0,62041.0,2.37524275]
[1722691506829,0.00093894,62042.0,62041.0,1.97419599]
[1722691507243,0.00093894,62042.0,62041.0,1.92723655]
[1722691507443,0.00093894,62042.0,62041.0,2.04795897]
[1722691508092,0.00093894,62042.0,62041.0,1.92723655]
[1722691508293,0.00093894,62042.0,62041.0,2.16085454]
[1722691508553,0.00093894,62042.0,62041.0,1.66460843]
[1722691508709,0.00093894,62042.0,62041.0,1.72040843]
[1722691509088,0.00093894,62042.0,62041.0,1.95476403]
[1722691510295,0.00093894,62042.0,62041.0,1.77490609]
[1722691510527,0.00093894,62042.0,62041.0,1.07857185]
[1722691510732,0.00093894,62042.0,62041.0,1.13437185]
[1722691511617,0.00093894,62042.0,62041.0,1.12037185]
[1722691511850,0.00093894,62042.0,62041.0,1.12937185]
[1722691512003,0.00093894,62042.0,62041.0,1.21855385]
[1722691512330,0.00093894,62042.0,62041.0,1.37885385]
[1722691512918,0.00093894,62042.0,62041.0,1.36885385]
[1722691513519,0.00093894,62042.0,62041.0,1.37885385]
[1722691513732,0.00093894,62042.0,62041.0,1.09927537]
[1722691514132,0.00093894,62042.0,62041.0,0.71620037]
[1722691514956,0.00093894,62042.0,62041.0,0.95797537]
[1722691515161,0.00093894,62042.0,62041.0,1.06988736]
[1722691516172,0.00093894,62042.0,62041.0,0.82811236]
[1722691519762,0.00093894,62042.0,62041.0,1.06988736]
[1722691520328,0.00093894,62042.0,62041.0,1.06986042]
[1722691520734,0.00093894,62042.0,62041.0,1.22731966]
[1722691520938,0.00093894,62042.0,62041.0,1.36861966]
[1722691521167,0.00093894,62042.0,62041.0,1.46861966]
[1722691521786,0.00093894,62042.0,62041.0,1.53558617]
[1722691522162,0.00093894,62042.0,62041.0,1.53529614]
[1722691522384,0.00093894,62042.0,62041.0,1.54529614]
[1722691522517,0.00093894,62042.0,62041.0,1.63187891]
[1722691522700,0.00093894,62042.0,62041.0,1.84953271]
[1722691523598,0.00093894,62042.0,62041.0,1.85953286]
[1722691523798,0.00093894,62042.0,62041.0,1.87368602]
[1722691524007,0.00093894,62042.0,62041.0,1.90568602]
[1722691524219,0.00093894,62042.0,62041.0,1.74240095]
[1722691524420,0.00093894,62042.0,62041.0,2.19845315]
[1722691524851,0.00093894,62042.0,62041.0,2.21145315]
[1722691525164,0.00093894,62042.0,62041.0,2.20245315]
[1722691525574,0.00093894,62042.0,62041.0,2.21245315]
[1722691525938,0.00093894,62042.0,62041.0,2.22345315]
[1722691527050,0.00909,62049.0,62048.0,1.259166]
[1722691527252,0.00909,62049.0,62048.0,1.83003091]
[1722691527468,0.00909,62049.0,62048.0,1.94552054]
[1722691527667,0.00909,62049.0,62048.0,1.96552054]
[1722691527867,0.00909,62049.0,62048.0,1.86891889]
[1722691528068,0.00909,62049.0,62048.0,1.96550408]
[1722691528369,0.00909,62049.0,62048.0,1.95850408]
[1722691528569,0.00909,62049.0,62048.0,1.89391889]
[1722691528921,0.00909,62049.0,62048.0,2.12266689]
[1722691529069,0.00909,62049.0,62048.0,2.13666689]
[1722691529268,0.00909,62049.0,62048.0,2.25625208]
[1722691529596,0.00909,62049.0,62048.0,2.15966689]
[1722691529824,0.00909,62049.0,62048.0,2.41593902]
[1722691530213,0.00909,62049.0,62048.0,2.42993902]
[1722691530370,0.00909,62056.0,62055.0,1.087744]
[1722691530566,0.00909,62056.0,62055.0,1.7352011]
[1722691530774,0.00909,62056.0,62055.0,1.71972469]
[1722691530989,0.00909,62056.0,62055.0,1.76659167]
[1722691531189,0.00909,62056.0,62055.0,1.86315588]
[1722691531637,0.00909,62056.0,62055.0,1.83899592]
[1722691531859,0.00909,62056.0,62055.0,1.84099592]
[1722691532455,0.00909,62056.0,62055.0,1.88511185]
[1722691532653,0.00909,62056.0,62055.0,1.87496217]
[1722691532985,0.00909,62056.0,62055.0,1.87496169]
[1722691533193,0.00909,62056.0,62055.0,1.88896169]
[1722691533352,0.00909,62056.0,62055.0,1.87496169]
[1722691533560,0.00909,62056.0,62055.0,1.88896169]
[1722691534080,0.00909,62056.0,62055.0,1.74804776]
[1722691534284,0.00909,62056.0,62055.0,1.84299273]
[1722691534458,0.00909,62056.0,62055.0,1.61717022]
[1722691534665,0.00909,62056.0,62055.0,1.76196436]
[1722691534873,0.00909,62056.0,62055.0,1.77311112]
[1722691535212,0.00909,62056.0,62055.0,1.66193211]
[1722691535414,0.07349,62056.0,62055.0,1.12145187]
[1722691535721,0.07349,62056.0,62055.0,0.42744798]
[1722691535927,0.07349,62056.0,62055.0,0.66916898]
[1722691536129,0.07349,62056.0,62055.0,0.42744798]
[1722691536371,0.07349,62056.0,62055.0,0.72496898]
[1722691536932,0.07349,62056.0,62055.0,0.71096898]
[1722691537142,0.07349,62056.0,62055.0,0.69696898]
[1722691537339,0.07349,62056.0,62055.0,0.65616898]
[1722691537702,0.07349,62056.0,62055.0,0.64116898]
[1722691537891,0.07349,62056.0,62055.0,0.64816898]
[1722691538106,0.07349,62056.0,62055.0,0.65516898]
[1722691538972,0.00909,62056.0,62055.0,0.89688998]
[1722691539176,0.00909,62056.0,62055.0,1.00715951]
[1722691539942,0.00909,62056.0,62055.0,0.89688998]
[1722691540351,0.00909,62056.0,62055.0,1.00731601]
[1722691540981,0.00909,62056.0,62055.0,1.00730723]
[1722691541334,0.00909,62056.0,62055.0,1.16476647]
[1722691542487,0.00909,62056.0,62055.0,1.22996647]
[1722691542695,0.00909,62056.0,62055.0,1.32996647]
[1722691542922,0.00909,62056.0,62055.0,1.57168747]
[1722691543300,0.00909,62056.0,62055.0,1.55768747]
[1722691543641,0.00909,62056.0,62055.0,1.57368747]
[1722691544055,0.00909,62056.0,62055.0,1.62463588]
[1722691544298,0.00909,62056.0,62055.0,1.63763588]
[1722691544616,0.00909,62056.0,62055.0,1.73849512]
[1722691545026,0.00909,62056.0,62055.0,1.77574246]
[1722691545596,0.00909,62056.0,62055.0,1.76274246]
[1722691546574,0.00909,62056.0,62055.0,1.77674246]
[1722691546774,0.00909,62056.0,62055.0,1.76074246]
[1722691546924,0.00909,62056.0,62055.0,1.77474246]
[1722691547128,0.00909,62056.0,62055.0,1.78874246]
[1722691547324,0.00909,62056.0,62055.0,1.52302146]
[1722691547652,0.00909,62056.0,62055.0,1.37062661]
[1722691548390,0.00909,62056.0,62055.0,1.35662661]
[1722691548524,0.00909,62056.0,62055.0,1.38062661]
[1722691548928,0.00909,62056.0,62055.0,1.44757651]
[1722691549584,0.00909,62056.0,62055.0,1.68929751]
[1722691549794,0.00909,62056.0,62055.0,1.66129751]
[1722691549995,0.00909,62056.0,62055.0,1.67529751]
[1722691550407,0.00909,62056.0,62055.0,1.64729751]
[1722691550585,0.00909,62056.0,62055.0,1.66129751]
[1722691550786,0.00909,62056.0,62055.0,1.67529751]
[1722691551137,0.00909,62056.0,62055.0,1.34262661]
[1722691551306,0.00909,62056.0,62055.0,1.40957763]
[1722691551483,0.00909,62056.0,62055.0,1.23284922]
[1722691551833,0.00909,62056.0,62055.0,1.34296194]
[1722691553444,0.00909,62056.0,62055.0,1.26446194]
[1722691553665,0.00909,62056.0,62055.0,1.27846194]
[1722691554002,0.07049,62056.0,62055.0,0.8652817]
[1722691554184,0.07049,62056.0,62055.0,0.8792817]
[1722691554691,0.07049,62056.0,62055.0,0.8652817]
[1722691555092,0.07049,62056.0,62055.0,0.8792817]
[1722691556366,0.07049,62056.0,62055.0,1.1995027]
[1722691556367,0.00909,62056.0,62055.0,1.1995027]
[1722691558343,0.15099,62056.0,62055.0,0.5375607]
[1722691558548,0.15099,62056.0,62055.0,0.18572698]
[1722691558748,0.15099,62056.0,62055.0,0.42744798]
[1722691559927,0.15099,62056.0,62055.0,0.39944798]
[1722691560128,0.15099,62056.0,62055.0,0.40644798]
[1722691560328,0.15099,62056.0,62055.0,0.41344798]
[1722691560525,0.15099,62056.0,62055.0,0.05086698]
[1722691560730,0.513565,62056.0,62055.0,0.05086698]
[1722691560932,0.92274124,62056.0,62055.0,0.05086698]
[1722691561136,0.92274124,62056.0,62055.0,0.014]
[1722691561592,0.92274124,62056.0,62055.0,0.007]
[1722691561593,1.16445824,62056.0,62055.0,0.007]
[1722691561943,1.25693422,62056.0,62055.0,0.007]
[1722691562359,1.16645824,62056.0,62055.0,0.007]
[1722691563113,0.0637,62044.0,62038.0,0.7912]
[1722691563320,0.241778,62041.0,62035.0,0.00156876]
[1722691563553,0.0637,62036.0,62035.0,0.00156876]
[1722691563762,0.0637,62036.0,62035.0,0.12246776]
[1722691564601,0.0637,62036.0,62035.0,0.00156876]
[1722691564809,0.1419,62036.0,62035.0,0.00156876]
[1722691565018,0.262797,62036.0,62035.0,0.00156876]
[1722691565226,0.262797,62036.0,62035.0,0.00656876]
[1722691565831,0.1419,62036.0,62035.0,0.00656876]
[1722691566466,0.262797,62036.0,62035.0,0.00656876]
[1722691566647,0.1419,62036.0,62035.0,0.00656876]
[1722691567100,0.1419,62036.0,62035.0,0.01056876]
[1722691568113,0.504592,62036.0,62035.0,0.01056876]
[1722691568709,0.262797,62036.0,62035.0,0.01056876]
[1722691569158,0.504592,62036.0,62035.0,0.01056876]
[1722691570163,0.1419,62036.0,62035.0,0.01056876]
[1722691570509,0.262797,62036.0,62035.0,0.04648751]
[1722691570720,0.1419,62036.0,62035.0,0.01056876]
[1722691570916,0.1419,62036.0,62035.0,0.04648751]
[1722691571130,0.1419,62036.0,62035.0,0.01056876]
[1722691571335,0.262797,62036.0,62035.0,0.04648751]
[1722691571551,0.262797,62036.0,62035.0,0.01056876]
[1722691571746,0.1419,62036.0,62035.0,0.04648751]
[1722691573104,0.262797,62036.0,62035.0,0.04648751]
[1722691573286,0.504592,62036.0,62035.0,0.04648751]
[1722691573700,0.262797,62036.0,62035.0,0.04648751]
[1722691575082,0.1419,62036.0,62035.0,0.04648751]
[1722691575463,0.262797,62036.0,62035.0,0.04648751]
[1722691575664,0.504592,62036.0,62035.0,0.04648751]
[1722691576068,0.746387,62036.0,62035.0,0.04648751]
[1722691576273,0.91384624,62036.0,62035.0,0.04648751]
[1722691576498,1.45264124,62036.0,62035.0,0.04648751]
[1722691576739,1.71743624,62036.0,62035.0,0.04648751]
[1722691577320,1.71743624,62036.0,62035.0,0.04248751]
[1722691577751,1.71743624,62036.0,62035.0,0.03848751]
[1722691577991,1.71943624,62036.0,62035.0,0.03848751]
[1722691578192,1.47764124,62036.0,62035.0,0.03848751]
[1722691578393,1.47764124,62036.0,62035.0,0.03948751]
[1722691578394,1.44464124,62036.0,62035.0,0.03948751]
[1722691578550,1.45264124,62036.0,62035.0,0.03748751]
[1722691578745,1.45264124,62036.0,62035.0,0.03848751]
[1722691579005,1.45464124,62036.0,62035.0,0.03948751]
[1722691583123,1.44464124,62036.0,62035.0,0.03948751]
[1722691583737,1.45464124,62036.0,62035.0,0.03948751]
[1722691585454,1.69643624,62036.0,62035.0,0.03948751]
[1722691586040,1.45464124,62036.0,62035.0,0.03948751]
[1722691587009,1.51923124,62036.0,62035.0,0.03948751]
[1722691590271,1.60987905,62036.0,62035.0,0.03948751]
[1722691591752,1.51923124,62036.0,62035.0,0.03948751]
[1722691591944,1.61017097,62036.0,62035.0,0.03948751]
[1722691592162,1.65317097,62036.0,62035.0,0.03948751]
[1722691592363,1.65293104,62036.0,62035.0,0.03948751]
[1722691593355,1.65320809,62036.0,62035.0,0.03948751]
[1722691594789,1.89500309,62036.0,62035.0,0.03948751]
[1722691595018,1.65320809,62036.0,62035.0,0.03948751]
[1722691596384,1.89500309,62036.0,62035.0,0.03948751]
[1722691596643,2.16520309,62036.0,62035.0,0.03948751]
[1722691596997,0.60471,62013.0,62012.0,0.00157439]
[1722691597211,0.362832,62012.0,62011.0,0.47251164]
[1722691597415,0.362868,62006.0,62005.0,0.1461]
[1722691597871,0.120956,62006.0,62005.0,0.1461]
[1722691598777,0.2419,62009.0,62005.0,0.1461]
[1722691598992,0.120955,62007.0,62005.0,0.1461]
[1722691599133,0.120956,62006.0,62005.0,0.1531]
[1722691599358,0.120956,62006.0,62005.0,0.087]
[1722691600206,0.121956,62006.0,62005.0,0.095]
[1722691600978,0.121956,62006.0,62005.0,0.088]
[1722691601330,0.121956,62006.0,62005.0,0.09]
[1722691601730,0.121956,62006.0,62005.0,0.088]
[1722691602056,0.122956,62006.0,62005.0,0.09]
[1722691602465,0.002,62006.0,62005.0,0.09]
[1722691603419,0.002,62006.0,62005.0,0.277157]
[1722691604405,0.002,62006.0,62005.0,0.760987]
[1722691604746,0.002,62006.0,62005.0,0.79135789]
[1722691607468,0.002,62006.0,62005.0,1.03327289]
[1722691608081,0.002,62006.0,62005.0,0.79135789]
[1722691608484,0.002,62006.0,62005.0,1.03327289]
[1722691609099,0.002,62006.0,62005.0,1.14231888]
[1722691609838,0.002,62006.0,62005.0,1.14173866]
[1722691610359,0.002,62006.0,62005.0,1.14265166]
[1722691612943,0.002,62006.0,62005.0,1.4001109]
[1722691613352,0.002,62006.0,62005.0,1.53356013]
[1722691613570,0.002,62006.0,62005.0,1.40022042]
[1722691613861,0.002,62006.0,62005.0,1.64213542]
[1722691614261,0.002,62006.0,62005.0,1.40022042]
[1722691617020,0.002,62006.0,62005.0,1.40028283]
[1722691618120,0.002,62006.0,62005.0,1.40228283]
[1722691618342,0.002,62006.0,62005.0,1.64419783]
[1722691618619,0.002,62006.0,62005.0,1.40228283]
[1722691619002,0.002,62006.0,62005.0,1.64419783]
[1722691619620,0.002,62006.0,62005.0,1.71120249]
[1722691620076,0.002,62006.0,62005.0,1.46728749]
[1722691620285,0.002,62006.0,62005.0,1.40028283]
[1722691620705,0.002,62006.0,62005.0,1.40022756]
[1722691622915,0.002,62006.0,62005.0,1.29164513]
[1722691623119,0.002,62006.0,62005.0,1.40104303]
[1722691623322,0.002,62006.0,62005.0,1.29164513]
[1722691623580,0.002,62006.0,62005.0,1.40104303]
[1722691624588,0.002,62006.0,62005.0,1.00166879]
[1722691625337,0.002,62006.0,62005.0,0.93546879]
[1722691626416,0.002,62006.0,62005.0,0.72607089]
[1722691626558,0.002,62006.0,62005.0,0.83552947]
[1722691629582,0.002,62006.0,62005.0,0.89672947]